bitfinex/quotes_ETHUSD_20251015
["timestamp","ask_amount","ask_price","bid_price","bid_amount"]
[1760548289021,0.1264,3950.1,3949.4,0.1264]
[1760548289209,0.001,3950.7,3948.5,0.002]
[1760548289210,0.46762517,3950.0,3948.5,0.002]
[1760548289415,0.1264,3949.4,3948.8,0.1264]
[1760548289616,0.221,3948.9,3948.8,0.1264]
[1760548289915,0.6636,3948.9,3948.8,0.1264]
[1760548290134,0.6636,3948.9,3948.5,0.002]
[1760548290356,0.221,3949.2,3948.5,0.002]
[1760548291413,0.221,3949.2,3948.6,2.53254284]
[1760548291630,0.221,3949.2,3948.6,0.50672766]
[1760548291833,0.221,3950.1,3948.6,0.50672766]
[1760548291834,0.6636,3950.1,3948.6,0.50672766]
[1760548292153,0.6636,3950.1,3948.5,0.002]
[1760548292353,0.6636,3950.1,3948.7,2.53247904]
[1760548292354,0.221,3950.1,3948.7,2.53247904]
[1760548292539,0.02602517,3950.7,3949.6,2.531893]
[1760548292719,0.02602517,3950.7,3949.5,2.53191248]
[1760548292925,2.55724623,3950.7,3948.6,0.0855]
[1760548293127,0.4426,3950.6,3948.7,2.53247904]
[1760548293431,0.001,3950.7,3949.1,2.53217693]
[1760548293630,0.001,3950.7,3949.0,2.53223985]
[1760548293631,2.53150086,3950.3,3949.0,2.53223985]
[1760548293832,2.53150086,3950.3,3948.6,0.43481218]
[1760548293833,0.4426,3950.5,3949.4,2.53201943]
[1760548294153,0.4426,3950.5,3949.5,2.53194874]
[1760548294340,0.4426,3950.5,3949.5,2.53191952]
[1760548294545,0.4426,3950.5,3949.7,2.53183761]
[1760548294717,0.4426,3950.5,3949.7,2.53178967]
[1760548294917,0.4426,3950.5,3948.8,2.53239206]
[1760548295146,0.4426,3950.5,3948.9,2.8290712]
[1760548295342,2.9739384,3950.5,3949.3,2.53209251]
[1760548295551,0.4426,3950.5,3949.0,2.53228665]
[1760548295850,2.97398364,3950.5,3949.0,2.53228665]
[1760548296051,2.97398364,3950.5,3948.9,0.29672042]
[1760548296052,0.4426,3950.5,3948.9,0.29672042]
[1760548296355,0.4426,3950.5,3949.0,0.02532286]
[1760548296551,0.001,3950.7,3949.6,2.53185574]
[1760548296852,0.001,3950.7,3948.9,0.38222042]
[1760548297149,0.4424,3950.6,3949.7,2.53183466]
[1760548297321,0.4424,3950.6,3949.9,2.53169681]
[1760548297523,0.4424,3950.6,3949.0,2.82374078]
[1760548298020,0.001,3950.7,3949.1,2.53222253]
[1760548298219,0.001,3950.7,3949.2,0.28236883]
[1760548298447,0.001,3950.7,3949.4,2.53203018]
[1760548298641,0.001,3950.7,3949.9,2.53165792]
[1760548298849,0.001,3950.7,3949.3,2.53209429]
[1760548299051,0.001,3950.7,3949.1,0.0855]
[1760548299052,0.001,3950.7,3950.1,2.53157709]
[1760548299259,0.001,3950.7,3950.4,2.53137138]
[1760548299455,0.001,3950.7,3949.0,2.82368879]
[1760548299653,0.001,3950.7,3949.0,0.29146582]
[1760548299859,0.4424,3950.6,3949.0,0.29146582]
[1760548300059,0.4424,3950.6,3948.6,0.52031218]
[1760548300239,0.4424,3950.6,3949.5,2.53190878]
[1760548300440,0.1264,3950.5,3949.8,0.1264]
[1760548300638,2.53131644,3950.6,3950.0,0.1264]
[1760548300836,2.65860499,3950.7,3950.0,0.1264]
[1760548301063,0.1274,3950.7,3950.0,0.1264]
[1760548301653,0.1274,3950.7,3949.0,0.0855]
[1760548301654,0.001,3950.7,3950.2,0.1264]
[1760548301967,0.4424,3950.6,3948.6,2.96732602]
[1760548302134,2.53153772,3950.2,3948.7,0.2969326]
[1760548302339,0.001,3950.7,3948.9,2.53233449]
[1760548302340,0.4424,3950.1,3948.9,2.53233449]
[1760548302539,0.4424,3950.1,3949.0,2.53228068]
[1760548302890,2.97398305,3950.1,3949.0,2.53228068]
[1760548303061,0.4424,3950.1,3948.5,0.002]
[1760548303268,0.4424,3950.2,3949.0,2.53223758]
[1760548303570,0.001,3950.7,3949.0,2.53223758]
[1760548303571,0.001,3950.7,3950.6,2.53126107]
[1760548304066,0.001,3950.7,3949.5,0.0855]
[1760548304369,0.001,3950.7,3950.6,2.53126107]
[1760548304767,0.001,3950.7,3950.6,2.64207368]
[1760548304968,0.001,3950.7,3950.6,12.97079604]
[1760548305169,0.001,3950.7,3950.6,14.52100988]
[1760548305467,0.001,3950.7,3950.6,4.16697491]
[1760548305636,0.001,3950.7,3950.6,2.61676107]
[1760548307655,0.001,3950.7,3950.1,10.35403497]
[1760548307856,0.001,3950.7,3950.6,2.53126107]
[1760548308060,0.001,3950.7,3950.3,2.53139072]
[1760548308236,0.001,3950.7,3950.4,2.55669138]
[1760548308437,0.001,3950.7,3950.6,2.53126107]
[1760548308667,0.001,3950.7,3950.5,0.25566914]
[1760548308978,0.001,3950.7,3950.4,2.53134283]
[1760548309277,0.001,3950.7,3949.7,2.53182208]
[1760548309439,0.001,3950.7,3949.3,0.0855]
[1760548309642,0.001,3950.7,3949.9,2.53169251]
[1760548309839,0.001,3950.7,3950.0,0.25316925]
[1760548310150,0.001,3950.7,3950.0,2.53162787]
[1760548310399,0.001,3950.7,3949.7,2.53178375]
[1760548310733,0.001,3950.7,3950.0,2.53159187]
[1760548310933,0.001,3950.7,3949.9,2.53167267]
[1760548311140,2.5322421,3950.7,3949.0,0.59396344]
[1760548311348,2.53151194,3950.3,3949.0,2.53423598]
[1760548311549,0.4424,3950.2,3949.0,0.002]
[1760548312064,0.5688,3950.2,3949.5,0.1264]
[1760548312266,0.2366,3949.6,3949.5,0.1264]
[1760548312462,0.679,3949.6,3949.2,0.1264]
[1760548312777,0.4424,3949.5,3949.0,0.1284]
[1760548313139,0.4424,3949.4,3949.0,0.002]
[1760548313668,0.4424,3949.3,3949.0,0.002]
[1760548314181,1.728,3950.3,3949.0,0.002]
[1760548314182,0.2366,3950.4,3949.0,0.002]
[1760548314380,0.2366,3950.4,3949.4,2.53202137]
[1760548314587,0.001,3950.7,3949.5,0.25320214]
[1760548314756,0.001,3950.7,3949.4,1.728]
[1760548314951,0.001,3950.7,3950.5,2.53130545]
[1760548315157,0.001,3950.7,3950.6,2.53126107]
[1760548317185,0.001,3950.7,3950.6,2.64207368]
[1760548317409,0.001,3950.7,3950.6,3.15941954]
[1760548317749,0.001,3950.7,3950.6,3.13410693]
[1760548318194,0.001,3950.7,3950.6,2.53126107]
[1760548318978,0.001,3950.7,3950.6,2.61676107]
[1760548319480,0.001,3950.7,3950.6,4.34476107]
[1760548319899,0.001,3950.7,3950.6,4.25926107]
[1760548320287,0.001,3950.7,3949.7,10.35403497]
[1760548320481,0.001,3950.7,3950.5,2.53132317]
[1760548320805,0.001,3950.7,3950.6,2.53126107]
[1760548321006,0.001,3950.7,3949.8,0.2531824]
[1760548321007,0.4557,3950.6,3949.8,0.2531824]
[1760548321224,0.4557,3950.6,3948.6,2.5345173]
[1760548321225,0.4557,3950.6,3949.2,2.53211028]
[1760548321375,0.4557,3950.6,3949.2,2.53215841]
[1760548321575,0.4557,3950.5,3949.1,2.53222253]
[1760548321775,0.4557,3950.5,3949.6,2.53185614]
[1760548322012,0.4557,3950.5,3949.5,2.53193946]
[1760548322177,0.001,3950.7,3949.6,2.53190196]
[1760548322378,0.001,3950.7,3950.6,2.53126107]
[1760548322592,0.001,3950.7,3950.6,12.91060865]
[1760548322920,0.001,3950.7,3950.6,12.88529604]
[1760548323082,0.001,3950.7,3950.6,2.65766107]
[1760548323283,0.001,3950.7,3950.6,4.21196518]
[1760548323512,0.001,3950.7,3950.6,4.29746518]
[1760548323972,0.001,3950.7,3950.6,4.21196518]
[1760548324488,0.001,3950.7,3950.6,2.65766107]
[1760548324692,0.001,3950.7,3950.6,2.53126107]
[1760548325837,0.001,3950.7,3950.2,12.88553259]
[1760548325838,0.001,3950.7,3950.2,10.35403497]
[1760548325994,0.4606,3950.6,3949.2,4.26015841]
[1760548326191,0.001,3950.7,3949.2,4.26015841]
[1760548326192,0.001,3950.7,3949.8,2.53177376]
[1760548326507,0.001,3950.7,3950.6,2.53126107]
[1760548326933,0.001,3950.7,3950.6,5.60916107]
[1760548327229,0.001,3950.7,3950.6,2.61676107]
[1760548327429,0.001,3951.1,3951.0,2.5310048]
[1760548327628,0.001,3951.1,3951.0,12.88503977]
[1760548327833,0.001,3953.2,3951.0,13.71769771]
[1760548328035,0.001,3953.2,3952.0,10.35403497]
[1760548328248,0.001,3953.2,3951.1,2.70191996]
[1760548328249,0.001,3953.2,3951.8,2.739]
[1760548328399,0.001,3953.2,3951.1,2.70189874]
[1760548328400,0.001,3953.2,3951.6,10.35403497]
[1760548328801,0.001,3953.2,3953.1,2.52966026]
[1760548329003,0.001,3953.2,3953.1,5.54602978]
[1760548329257,0.001,3954.0,3953.5,2.52940432]
[1760548329397,0.001,3954.0,3953.5,12.88343929]
[1760548329601,0.001,3954.0,3953.5,15.70993929]
[1760548329811,0.001,3954.0,3953.5,12.96893929]
[1760548330116,0.001,3954.0,3953.5,17.25978263]
[1760548330312,0.001,3954.0,3953.5,16.24678263]
[1760548330539,0.001,3954.0,3953.9,2.52914843]
[1760548330700,0.2144,3955.9,3955.1,2.52836879]
[1760548330901,0.675,3955.9,3955.1,2.52836879]
[1760548331106,0.675,3955.9,3954.4,10.35403497]
[1760548331327,0.675,3955.9,3955.0,2.52844338]
[1760548331512,0.675,3955.9,3954.5,1.28829531]
[1760548331513,0.48562517,3955.8,3954.5,1.28829531]
[1760548331715,0.2144,3954.6,3953.1,10.35403497]
[1760548331941,0.4606,3954.5,3953.3,2.52953228]
[1760548332123,0.2144,3954.6,3953.2,1.728]
[1760548332321,0.2144,3954.9,3953.8,2.52914986]
[1760548332524,0.2144,3954.9,3953.8,2.52920711]
[1760548332711,0.2144,3954.9,3954.1,2.52895836]
[1760548332916,0.2144,3954.9,3953.4,2.5294683]
[1760548332917,0.2144,3954.9,3953.5,2.74]
[1760548333134,0.2144,3954.9,3954.4,2.52881141]
[1760548333427,0.675,3954.8,3953.8,2.52918111]
[1760548333751,0.675,3954.8,3954.3,2.52884389]
[1760548334052,0.2144,3955.9,3954.4,0.02528828]
[1760548334218,0.2144,3955.9,3953.8,0.25291811]
[1760548334414,0.48562517,3955.8,3953.8,0.25291811]
[1760548334619,0.2144,3953.9,3952.3,10.35403497]
[1760548334845,0.4606,3953.8,3952.4,2.53010828]
[1760548335147,0.4606,3953.7,3953.2,0.1264]
[1760548335450,0.4606,3953.6,3953.2,0.1264]
[1760548335650,0.675,3953.9,3952.5,2.53002665]
[1760548335856,0.675,3953.9,3952.3,10.35403497]
[1760548335857,0.4606,3953.8,3953.5,0.1264]
[1760548336019,0.4606,3953.8,3953.2,2.52957557]
[1760548336219,0.4606,3953.8,3953.7,0.1264]
[1760548337157,0.4606,3953.8,3952.0,2.53030642]
[1760548337452,0.4606,3953.7,3952.2,2.5301827]
[1760548337651,2.52967461,3953.1,3951.2,2.53087669]
[1760548337853,0.4606,3953.0,3951.3,0.26163767]
[1760548338158,0.2144,3952.9,3951.3,0.26163767]
[1760548338322,0.2144,3952.9,3952.2,2.53023181]
[1760548338517,0.48562517,3952.8,3951.6,2.53056522]
[1760548338763,0.4606,3952.8,3951.3,0.26163767]
[1760548338928,0.2144,3953.5,3952.7,2.52985707]
[1760548339127,0.2144,3953.9,3951.4,0.11080748]
[1760548339128,0.2144,3953.9,3952.8,0.02529852]
[1760548339427,0.2144,3954.5,3954.1,2.52897123]
[1760548339641,0.2144,3954.5,3952.8,0.0855]
[1760548339826,0.4606,3954.9,3952.8,0.0855]
[1760548339827,0.675,3954.9,3952.9,2.739]
[1760548340025,0.675,3954.9,3953.8,2.52916398]
[1760548340225,0.675,3954.9,3953.2,2.52959627]
[1760548340226,0.2144,3954.9,3954.7,2.52858881]
[1760548340466,0.2144,3955.4,3954.6,0.025287]
[1760548340649,0.2144,3955.9,3953.7,0.0855]
[1760548340851,0.4606,3955.6,3953.7,0.0855]
[1760548341064,0.4606,3955.6,3954.5,2.52874886]
[1760548341272,2.52827274,3955.3,3953.8,2.79066155]
[1760548341477,0.2144,3954.6,3952.1,0.0855]
[1760548341631,0.2144,3953.9,3950.7,2.53113694]
[1760548341833,0.2144,3953.9,3951.6,2.5306205]
[1760548341834,0.4606,3953.8,3951.6,2.5306205]
[1760548342041,2.52928118,3953.7,3952.4,2.53005966]
[1760548342239,2.98981809,3953.8,3952.6,2.52997826]
[1760548342441,0.2144,3952.7,3950.4,2.53137836]
[1760548342661,0.4606,3953.0,3951.2,2.53087669]
[1760548342877,0.4606,3953.0,3951.3,1.98963767]
[1760548343182,0.4606,3953.6,3953.0,2.52971589]
[1760548343333,0.4606,3953.6,3953.1,2.52963171]
[1760548343667,0.2144,3953.9,3952.9,2.52974068]
[1760548343668,0.4606,3953.5,3952.9,2.52974068]
[1760548343839,0.2144,3953.9,3953.0,0.02529724]
[1760548344043,0.2144,3953.9,3952.1,0.025303]
[1760548344268,0.2144,3953.9,3952.2,2.79433826]
[1760548344569,0.2144,3954.6,3953.5,2.52935547]
[1760548344752,0.2144,3954.6,3953.7,2.52922971]
[1760548344931,0.2144,3954.6,3952.4,0.6336]
[1760548345284,0.2144,3955.0,3953.0,1.728]
[1760548345456,0.2144,3955.0,3953.1,0.0252966]
[1760548345770,0.2144,3954.9,3953.3,2.52953228]
[1760548345943,0.2144,3955.0,3954.9,2.52850893]
[1760548346268,0.2154,3955.9,3955.4,2.52818931]
[1760548346269,0.2144,3955.5,3955.4,2.52818931]
[1760548346562,0.2144,3955.5,3954.9,0.25285089]
[1760548346563,0.2154,3955.9,3955.0,2.52840014]
[1760548346766,0.001,3955.9,3955.8,2.52793366]
[1760548347071,0.001,3956.3,3956.2,4.25567807]
[1760548347243,0.001,3956.3,3956.2,4.38127807]
[1760548347447,0.001,3956.3,3956.2,4.9551327]
[1760548348656,0.001,3956.3,3955.2,0.0855]
[1760548348855,0.001,3956.3,3956.2,2.52767807]
[1760548349669,0.001,3956.3,3954.9,2.78130023]
[1760548349892,0.001,3956.3,3956.0,2.52780373]
[1760548350201,0.001,3956.3,3955.4,2.739]
[1760548350367,0.001,3956.3,3955.6,2.52805392]
[1760548350575,0.001,3956.3,3955.5,0.28245]
[1760548350783,0.001,3956.3,3954.2,2.52891244]
[1760548350784,0.2144,3955.6,3954.0,0.0855]
[1760548350990,0.2144,3955.6,3955.1,2.52833069]
[1760548351201,0.2144,3955.6,3955.5,2.52812539]
[1760548351600,0.001,3956.3,3954.4,0.02528828]
[1760548351893,0.001,3956.3,3954.7,2.52863681]
[1760548352200,0.4606,3956.2,3954.5,2.1562188]
[1760548352373,0.4606,3956.2,3955.6,2.52805421]
[1760548352696,0.2144,3955.7,3954.8,2.52852553]
[1760548352995,0.001,3956.3,3956.2,2.52767807]
[1760548353583,0.001,3956.3,3956.2,2.78044588]
[1760548353764,0.001,3956.3,3956.2,2.80572266]
[1760548354267,0.001,3956.3,3954.8,8.86169355]
[1760548354472,0.001,3956.3,3956.2,2.52767807]
[1760548354667,0.001,3956.3,3955.2,1.728]
[1760548354893,0.001,3956.3,3955.0,2.528445]
[1760548354894,0.001,3956.3,3955.9,2.52786109]
[1760548355083,0.001,3956.3,3954.6,2.52870075]
[1760548355084,0.4606,3956.2,3954.6,2.52870075]
[1760548355293,0.4606,3956.1,3954.0,0.0855]
[1760548355471,0.6336,3956.0,3954.8,2.52851186]
[1760548355671,0.663,3955.9,3953.5,0.0855]
[1760548355995,0.663,3955.9,3955.5,2.5280619]
[1760548356196,0.2144,3955.9,3954.2,1.728]
[1760548356396,0.663,3955.9,3954.3,0.42569792]
[1760548356570,0.663,3955.9,3955.2,2.52830461]
[1760548356772,0.663,3955.9,3954.3,0.42569792]
[1760548357291,0.663,3955.9,3953.5,0.0855]
[1760548357479,0.663,3955.9,3955.0,2.52840924]
[1760548357680,0.663,3955.9,3953.8,2.5292124]
[1760548357681,0.1264,3955.6,3954.9,0.1264]
[1760548357857,0.1264,3955.6,3954.9,2.654897]
[1760548358059,0.2144,3956.1,3955.6,2.52803036]
[1760548358282,0.2362,3955.7,3955.4,0.1264]
[1760548358484,0.4486,3955.6,3955.2,0.1264]
[1760548358680,0.2362,3955.7,3955.2,0.1264]
[1760548358914,0.4486,3955.5,3955.2,0.1264]
[1760548359073,0.4486,3955.4,3954.9,0.1264]
[1760548359402,0.2362,3955.7,3954.6,2.52865109]
[1760548359565,0.1256,3956.0,3955.3,0.1264]
[1760548359764,0.001,3956.3,3956.0,2.52780586]
[1760548360073,0.001,3956.3,3956.2,2.65327807]
[1760548360910,0.001,3956.7,3956.4,2.52755029]
[1760548361062,0.001,3956.7,3956.6,2.52742253]
[1760548361263,0.001,3956.7,3956.6,2.65302253]
[1760548362294,0.4496,3956.7,3956.3,1.699]
[1760548362602,0.1256,3956.5,3956.3,1.699]
[1760548362908,0.4486,3956.4,3956.3,1.224]
[1760548363859,0.001,3956.7,3956.3,1.224]
[1760548364068,0.4486,3956.6,3956.3,1.224]
[1760548364478,0.001,3956.7,3956.3,1.224]
[1760548364479,0.4486,3956.5,3956.3,1.224]
[1760548364767,0.001,3956.7,3956.3,1.224]
[1760548365116,0.001,3956.7,3956.6,2.52742253]
[1760548366368,0.001,3956.7,3956.3,1.224]
[1760548367092,0.001,3956.7,3956.6,2.52742253]
[1760548367415,0.001,3956.7,3956.6,3.15531981]
[1760548367903,0.001,3956.7,3956.6,2.52742253]
[1760548368200,0.001,3956.7,3956.5,2.52746627]
[1760548368378,0.001,3956.7,3956.6,2.52742253]
[1760548368711,0.001,3956.7,3956.3,1.224]
[1760548369004,0.001,3956.7,3956.6,2.52742253]
[1760548369413,0.001,3956.7,3956.6,3.15531981]
[1760548370208,0.001,3956.7,3956.6,2.52742253]
[1760548371294,0.001,3956.7,3956.3,3.7516134]
[1760548371534,0.4486,3956.6,3956.3,1.224]
[1760548371694,0.001,3956.7,3956.6,2.52742253]
[1760548372291,0.001,3956.7,3956.6,2.55269675]
[1760548372524,0.001,3956.7,3956.6,3.15784723]
[1760548373319,0.001,3956.7,3956.6,3.28344723]
[1760548375193,0.001,3956.7,3956.6,2.65302253]
[1760548375390,0.001,3956.7,3956.3,1.224]
[1760548375391,1.291,3956.7,3956.3,0.8792]
[1760548375593,1.291,3956.7,3953.2,0.002]
[1760548375594,2.52801647,3955.7,3953.2,0.002]
[1760548375817,0.1906,3955.0,3953.2,0.002]
[1760548375990,0.1906,3955.0,3953.4,0.4522]
[1760548376319,0.1906,3955.0,3954.4,2.52881504]
[1760548376489,0.1906,3955.0,3953.4,2.1802]
[1760548376490,0.02502517,3954.9,3953.6,2.53127758]
[1760548376694,0.099,3954.8,3953.8,2.52920679]
[1760548376897,0.099,3954.8,3954.0,2.53107049]
[1760548377228,0.099,3954.8,3954.0,0.002]
[1760548377643,0.1906,3955.0,3954.1,2.52902051]
[1760548377795,0.099,3955.4,3954.1,0.25310205]
[1760548377796,0.2887,3955.4,3954.1,0.25310205]
[1760548377994,0.2887,3955.4,3954.1,2.52902051]
[1760548378223,0.2887,3955.4,3954.0,0.002]
[1760548378224,0.2887,3955.4,3954.3,2.52888955]
[1760548378552,3.16186096,3955.3,3954.2,2.52891843]
[1760548378754,3.16186096,3955.3,3954.0,0.002]
[1760548378755,0.6336,3955.1,3954.0,0.002]
[1760548379056,0.0999,3955.2,3954.0,0.002]
[1760548379234,0.0999,3955.2,3954.1,2.52896733]
[1760548379439,0.1897,3955.4,3954.6,2.52868386]
[1760548379754,0.1897,3955.4,3954.2,0.2181]
[1760548379968,0.1897,3955.4,3954.5,2.52870625]
[1760548380258,0.6336,3955.2,3954.0,0.002]
[1760548380459,0.6336,3954.8,3954.0,0.002]
[1760548380962,0.0999,3955.3,3954.3,0.002]
[1760548381123,0.6336,3955.0,3954.3,0.002]
[1760548381319,0.6336,3955.2,3954.3,0.002]
[1760548381519,0.0999,3954.9,3954.3,0.002]
[1760548381928,0.65862517,3954.8,3954.3,0.002]
[1760548382156,0.6336,3954.4,3954.3,0.002]
[1760548382457,0.6336,3954.6,3954.3,0.002]
[1760548382657,0.0999,3954.4,3954.3,0.002]
[1760548383222,0.0999,3955.2,3954.3,0.002]
[1760548383454,0.1906,3956.0,3954.4,2.52882864]
[1760548383659,0.1888,3955.8,3954.5,0.27489286]
[1760548383840,0.1888,3955.8,3955.1,2.52837954]
[1760548384034,0.1888,3955.8,3954.4,2.52882864]
[1760548384255,0.1906,3956.0,3955.4,2.52814124]
[1760548384440,0.1906,3956.0,3954.7,0.4522]
[1760548384640,0.6336,3955.7,3954.3,0.002]
[1760548384839,0.12582517,3955.9,3954.3,0.002]
[1760548384840,0.6336,3955.2,3954.3,0.002]
[1760548385041,3.16242864,3954.4,3954.3,0.002]
[1760548385263,0.6336,3954.4,3954.3,0.002]
[1760548385564,0.6336,3954.6,3954.3,0.002]
[1760548385778,0.1008,3955.1,3954.3,0.002]
[1760548386079,0.1264,3954.6,3954.3,0.002]
[1760548386240,3.16242864,3954.4,3954.3,0.002]
[1760548386441,9.23321264,3954.4,3954.3,0.002]
[1760548386664,4.89042864,3954.4,3954.3,0.002]
[1760548386976,0.6336,3954.8,3954.3,0.002]
[1760548387476,3.16242864,3954.4,3954.3,0.002]
[1760548387853,0.6336,3954.4,3954.3,0.002]
[1760548388064,3.16242864,3954.4,3954.3,0.002]
[1760548388268,3.26322864,3954.4,3954.3,0.002]
[1760548388470,14.31140481,3954.4,3954.3,0.002]
[1760548388774,7.62049164,3954.4,3954.3,0.002]
[1760548389401,10.58638147,3954.0,3953.9,0.002]
[1760548389593,4.89068447,3954.0,3953.9,0.002]
[1760548389877,2.4624,3954.0,3953.9,0.002]
[1760548390046,4.99148447,3954.0,3953.9,0.002]
[1760548390378,2.52806148,3955.6,3953.9,0.002]
[1760548390578,0.1008,3954.0,3953.9,0.002]
[1760548390790,1.728,3954.5,3953.9,0.002]
[1760548390986,2.62932684,3954.9,3953.9,0.002]
[1760548391147,2.52857287,3954.8,3953.9,0.002]
[1760548391349,0.1008,3955.5,3954.2,2.52889941]
[1760548391549,0.1008,3955.5,3954.0,2.52908447]
[1760548391774,0.1008,3955.5,3954.0,0.25310845]
[1760548391975,2.52819312,3955.4,3954.1,2.75279913]
[1760548392193,0.1906,3956.0,3954.2,0.45418956]
[1760548392395,0.1906,3956.0,3954.2,0.4289]
[1760548392897,4.865775,3956.6,3954.2,0.4289]
[1760548393209,1.85202517,3956.5,3954.2,0.4289]
[1760548393395,2.52785612,3956.0,3954.9,2.52849732]
[1760548393711,2.52787593,3955.9,3954.8,2.52855565]
[1760548393870,2.5285517,3954.9,3953.7,0.4289]
[1760548394069,0.6336,3955.2,3954.0,2.5290719]
[1760548394315,3.16186006,3955.3,3954.2,2.52895655]
[1760548394473,0.02502517,3955.2,3953.6,2.53133632]
[1760548394677,0.6336,3954.8,3953.6,0.002]
[1760548394975,2.52881933,3954.5,3953.6,0.002]
[1760548395176,0.02502517,3954.4,3953.6,0.002]
[1760548395387,2.52908447,3954.0,3953.6,0.002]
[1760548395674,5.68983047,3954.0,3953.6,0.002]
[1760548395891,3.26258447,3954.0,3953.6,0.002]
[1760548396117,0.6336,3954.0,3953.6,0.002]
[1760548396423,0.1264,3954.1,3953.6,2.53133328]
[1760548396713,0.1264,3954.1,3953.6,0.002]
[1760548397219,0.1264,3954.1,3953.6,0.1284]
[1760548397517,0.1264,3954.5,3953.8,0.1264]
[1760548397880,2.52850893,3954.9,3953.8,2.52915406]
[1760548398075,0.1264,3954.3,3953.6,0.1284]
[1760548398497,0.1264,3954.3,3953.7,2.52926388]
[1760548398711,0.02502517,3954.2,3953.6,0.1284]
[1760548398877,0.0999,3955.5,3953.6,0.4309]
[1760548399077,2.5272404,3956.9,3953.6,0.4309]
[1760548399078,10.60876917,3956.3,3954.1,0.2238]
[1760548399423,0.0999,3956.0,3954.6,2.52868771]
[1760548399577,0.1264,3955.2,3954.1,0.2238]
[1760548399784,10.60876917,3956.1,3954.3,0.1264]
[1760548399785,0.1264,3955.0,3954.3,0.1264]
[1760548399996,0.001,3956.2,3954.2,0.4289]
[1760548400306,2.5283764,3955.2,3953.6,0.002]
[1760548400511,0.1264,3954.6,3954.0,0.1264]
[1760548401101,0.1264,3954.6,3954.1,0.2238]
[1760548401306,0.1264,3955.0,3954.3,0.1264]
[1760548401534,2.3616,3955.6,3953.9,0.002]
[1760548401704,2.3616,3955.6,3953.9,0.1284]
[1760548401705,0.1264,3954.5,3953.9,0.1284]
[1760548402119,0.1264,3954.5,3953.9,2.65754028]
[1760548402427,13.13677006,3955.7,3953.9,2.65754028]
[1760548402428,0.2914,3955.9,3954.4,2.75262465]
[1760548402749,0.6336,3955.6,3953.9,0.52087793]
[1760548402909,0.6336,3955.6,3954.2,0.1264]
[1760548402910,0.1264,3954.8,3954.2,0.1264]
[1760548403111,2.52851437,3954.9,3953.9,0.002]
[1760548403112,2.52881476,3954.5,3953.9,0.002]
[1760548403343,0.6336,3954.9,3953.9,0.002]
[1760548403344,2.52851822,3954.9,3953.9,0.002]
[1760548403645,1.728,3955.1,3954.3,2.52887131]
[1760548403941,2.52829698,3955.3,3954.2,0.6527]
[1760548404148,2.52829698,3955.3,3954.2,3.18160905]
[1760548404321,2.52839396,3955.1,3954.2,0.6527]
[1760548404656,0.6336,3955.2,3953.9,0.002]
[1760548404827,1.728,3955.0,3953.9,0.002]
[1760548405031,0.6336,3954.8,3953.9,0.002]
[1760548405355,12.68646647,3954.0,3953.9,0.002]
[1760548405503,11.24301347,3954.0,3953.9,0.001]
[1760548405707,4.89087637,3953.7,3953.6,0.002]
[1760548406323,4.99307637,3953.7,3953.6,0.002]
[1760548406523,17.71798837,3953.7,3953.6,0.002]
[1760548407039,34.99307637,3953.7,3953.6,0.002]
[1760548407357,9.88516137,3953.7,3953.6,0.002]
[1760548407530,8.76668437,3953.7,3953.6,0.002]
[1760548408039,30.46836537,3953.7,3953.6,0.002]
[1760548408246,3.16313228,3953.3,3953.1,0.002]
[1760548408445,29.91161945,3953.3,3953.1,0.002]
[1760548408643,30.01381945,3953.3,3953.1,0.002]
[1760548409141,23.01972945,3953.3,3953.1,0.002]
[1760548409340,23.01972945,3953.3,3951.1,0.4289]
[1760548409341,0.6336,3952.5,3951.1,0.4289]
[1760548409568,1.728,3953.2,3950.6,0.002]
[1760548409569,3.16409243,3951.8,3950.6,0.002]
[1760548409741,0.02502517,3951.7,3950.6,0.002]
[1760548410055,0.6336,3951.7,3950.7,2.53118969]
[1760548410237,0.6336,3952.3,3950.7,0.50645595]
[1760548410413,0.6336,3951.7,3950.7,0.50645595]
[1760548410607,0.02502517,3951.6,3950.6,0.002]
[1760548410808,0.2014,3951.9,3950.6,0.002]
[1760548411039,0.6336,3951.8,3950.6,2.53323315]
[1760548411238,0.6336,3951.8,3950.7,2.5311884]
[1760548411439,0.6336,3951.7,3950.7,2.5311884]
[1760548411640,0.6336,3951.8,3950.6,0.002]
[1760548411840,3.1641317,3951.8,3950.6,0.002]
[1760548412045,0.6336,3951.6,3950.6,2.53322708]
[1760548412257,0.6336,3951.6,3950.6,0.002]
[1760548412626,0.6336,3951.3,3950.6,0.002]
[1760548412936,1.728,3951.8,3950.6,0.002]
[1760548413135,0.6336,3951.5,3950.6,0.002]
[1760548413339,0.1264,3951.1,3950.6,0.002]
[1760548413526,0.02502517,3951.0,3950.6,0.002]
[1760548413945,0.65862517,3951.0,3950.6,0.002]
[1760548414128,0.1049,3951.5,3950.6,0.002]
[1760548414129,29.535747,3950.7,3950.6,0.002]
[1760548414319,2.658399,3950.7,3950.6,0.002]
[1760548414653,3.269697,3950.7,3950.6,0.002]
[1760548414839,34.997697,3950.7,3950.6,0.002]
[1760548415180,7.065816,3950.7,3950.6,0.002]
[1760548415470,11.14846,3950.7,3950.6,0.002]
[1760548415809,14.912111,3950.7,3950.6,0.002]
[1760548415950,15.017011,3950.7,3950.6,0.002]
[1760548416146,15.017011,3950.7,3948.3,32.5327294]
[1760548416147,8.24782246,3948.4,3948.3,30.0]